bitfinex/quotes_SOLUSD_20241222
["timestamp","ask_amount","ask_price","bid_price","bid_amount"]
[1734863487899,4.0229,186.43,186.32,26.5711355]
[1734863488101,4.0229,186.43,186.33,41.23744631]
[1734863488290,20.0,186.44,186.33,41.23744631]
[1734863488497,20.0,186.43,186.33,23.776884]
[1734863489609,20.0,186.42,186.32,8.3057]
[1734863489775,24.0231,186.42,186.32,8.3057]
[1734863491205,20.0,186.38,186.32,8.3057]
[1734863492382,24.0242,186.38,186.32,8.3057]
[1734863492596,24.0242,186.38,186.32,1.6481]
[1734863494005,20.0,186.38,186.32,1.6481]
[1734863494221,24.0233,186.42,186.32,1.6481]
[1734863496612,2.36229362,186.45,186.33,30.313784]
[1734863496912,4.0217,186.49,186.36,1.584]
[1734863497086,4.0217,186.49,186.36,19.84919425]
[1734863497287,2.38621547,186.49,186.38,23.776884]
[1734863497487,4.021,186.53,186.38,42.04194377]
[1734863497914,2.35566683,186.53,186.43,19.04456231]
[1734863498097,4.0201,186.56,186.44,0.80435073]
[1734863498296,4.0195,186.59,186.45,23.776884]
[1734863498598,4.0195,186.59,186.46,0.80423946]
[1734863498825,4.0195,186.59,186.47,6.4195]
[1734863499417,6.32224883,186.59,186.47,6.4195]
[1734863500016,20.0,186.56,186.47,6.4195]
[1734863507617,20.0,186.56,186.48,1.597]
[1734863507830,20.0,186.56,186.48,2.40119342]
[1734863508215,6.32224883,186.59,186.48,2.40119342]
[1734863509213,6.32224883,186.59,186.48,19.86175573]
[1734863509410,0.6797025,186.63,186.51,41.23744631]
[1734863509625,0.6797025,186.63,186.53,41.23744631]
[1734863509824,0.6797025,186.63,186.54,8.70527475]
[1734863510207,0.6797025,186.63,186.55,23.776884]
[1734863510627,0.6797025,186.63,186.56,0.80379073]
[1734863510799,0.6797025,186.63,186.59,6.3044]
[1734863511005,0.6797025,186.63,186.59,23.76496231]
[1734863511504,0.6797025,186.63,186.59,6.3044]
[1734863512724,0.6797025,186.63,186.55,6.3044]
[1734863512725,4.6985025,186.63,186.55,6.3044]
[1734863516542,0.6797025,186.63,186.55,6.3044]
[1734863518339,4.0188,186.62,186.55,6.3044]
[1734863518945,20.0,186.58,186.55,6.3044]
[1734863519123,20.0,186.58,186.53,1.597]
[1734863520224,20.0,186.54,186.53,1.597]
[1734863520522,20.0,186.54,186.5,6.3736]
[1734863522147,20.0,186.53,186.5,6.3736]
[1734863522444,20.0,186.53,186.45,7.9129]
[1734863522843,4.021,186.52,186.45,7.9129]
[1734863524447,20.0,186.53,186.45,7.9129]
[1734863526249,2.31066586,186.64,186.52,31.689784]
[1734863526416,2.31066586,186.64,186.57,17.46056231]
[1734863526616,16.76468656,186.72,186.58,0.80373822]
[1734863527140,16.76468656,186.72,186.6,7.9129]
[1734863527333,2.23776318,186.71,186.6,8.7164758]
[1734863528553,2.23776318,186.71,186.6,7.9129]
[1734863529446,20.0,186.69,186.6,7.9129]
[1734863530357,4.0168,186.72,186.6,7.9129]
[1734863530530,4.0168,186.72,186.61,0.80361853]
[1734863531132,20.0,186.69,186.61,0.80361853]
[1734863531458,17.7742,186.76,186.62,17.46056231]
[1734863531459,10.0,186.76,186.62,17.46056231]
[1734863531765,14.016,186.76,186.62,17.46056231]
[1734863532558,14.016,186.76,186.63,23.776884]
[1734863532724,10.0,186.76,186.66,17.46056231]
[1734863532928,10.0,186.76,186.69,1.5393]
[1734863533143,10.0,186.76,186.69,2.3425346]
[1734863533344,10.0,186.76,186.69,19.80309691]
[1734863534960,10.0,186.76,186.71,17.46056231]
[1734863535164,10.0,186.76,186.72,0.80307206]
[1734863535577,10.0,186.76,186.72,18.26363437]
[1734863535860,10.0,186.76,186.72,0.80307206]
[1734863536056,10.0,186.76,186.69,1.5393]
[1734863536057,10.0,186.76,186.69,19.8029404]
[1734863536251,10.0,186.76,186.69,1.5393]
[1734863537352,20.0,186.73,186.69,1.5393]
[1734863537535,10.0,186.76,186.69,18.99986231]
[1734863537846,20.0,186.79,186.69,18.99986231]
[1734863538168,0.6797025,186.81,186.7,18.26377465]
[1734863538836,0.6797025,186.81,186.71,17.46056231]
[1734863539038,0.6797025,186.81,186.72,0.80308164]
[1734863539277,0.6797025,186.81,186.72,18.26364395]
[1734863539951,0.6797025,186.81,186.75,6.5323]
[1734863541041,4.0149,186.8,186.71,6.5323]
[1734863541868,20.0,186.79,186.71,6.5323]
[1734863542043,0.6797025,186.81,186.71,7.33551461]
[1734863542365,0.6797025,186.81,186.71,24.79607692]
[1734863543335,0.6797025,186.81,186.72,17.46056231]
[1734863543542,0.6797025,186.81,186.73,18.26360066]
[1734863543967,0.6797025,186.81,186.73,0.80303835]
[1734863544664,0.6797025,186.81,186.73,18.26360066]
[1734863544868,0.6797025,186.81,186.74,23.776884]
[1734863545047,0.6797025,186.81,186.75,0.8029405]
[1734863545442,0.6797025,186.81,186.74,23.776884]
[1734863545639,0.6797025,186.81,186.73,17.46056231]
[1734863545956,0.6797025,186.81,186.74,0.80300691]
[1734863546379,0.6797025,186.81,186.75,17.46056231]
[1734863546664,0.6797025,186.81,186.71,6.5323]
[1734863546665,0.6797025,186.81,186.73,17.46056231]
[1734863546972,0.6797025,186.81,186.74,0.80298267]
[1734863550173,0.6797025,186.81,186.74,18.26354498]
[1734863550550,0.6797025,186.81,186.78,1.5558]
[1734863551173,0.6797025,186.81,186.79,0.80283802]
[1734863552675,0.6797025,186.81,186.78,1.5558]
[1734863552850,0.6797025,186.81,186.73,19.81918369]
[1734863553168,0.6797025,186.81,186.74,17.46056231]
[1734863553345,0.6797025,186.81,186.75,18.26343295]
[1734863554471,0.6797025,186.81,186.73,19.8193448]
[1734863555675,10.0,186.75,186.73,19.8193448]
[1734863556575,10.0,186.75,186.74,17.46056231]
[1734863557080,10.0,186.75,186.73,19.8193448]
[1734863557774,10.0,186.75,186.74,17.46056231]
[1734863557974,10.0,186.75,186.73,19.8193448]
[1734863558273,10.0,186.75,186.73,1.5558]
[1734863559052,10.0,186.75,186.71,7.33541554]
[1734863560970,10.0,186.75,186.71,6.5323]
[1734863562062,10.0,186.75,186.72,18.26372178]
[1734863562777,10.0,186.75,186.73,17.46056231]
[1734863563480,10.0,186.75,186.72,18.26372178]
[1734863563780,10.0,186.75,186.72,0.80315947]
[1734863563951,10.0,186.75,186.71,23.99286231]
[1734863563952,10.0,186.75,186.71,6.5323]
[1734863564384,10.0,186.75,186.7,0.80314415]
[1734863564973,10.0,186.75,186.7,18.26370646]
[1734863565789,10.0,186.75,186.71,23.776884]
[1734863566086,10.0,186.75,186.73,17.46056231]
[1734863566266,10.0,186.75,186.72,18.2636232]
[1734863566586,10.0,186.75,186.73,17.46056231]
[1734863566893,10.0,186.75,186.74,42.04040321]
[1734863569695,10.0,186.75,186.74,48.19220321]
[1734863571360,10.0,186.75,186.74,51.23711511]
[1734863573186,10.0,186.75,186.74,187.26260511]
[1734863573386,10.0,186.75,186.74,186.45964821]
[1734863574193,10.0,186.75,186.74,203.92021052]
[1734863574389,6.0791,186.75,186.74,203.92021052]
[1734863574571,2.8209,186.75,186.74,205.57761052]
[1734863574773,2.8209,186.75,186.74,188.11704821]
[1734863575084,0.6797025,186.81,186.76,23.776884]
[1734863575288,0.6797025,186.81,186.79,17.46056231]
[1734863575483,0.6797025,186.81,186.8,24.5795844]
[1734863575790,0.6797025,186.81,186.8,42.04014671]
[1734863577099,0.6797025,186.81,186.8,45.09231915]
[1734863578162,0.6797025,186.81,186.8,27.63175684]
[1734863579471,0.6797025,186.81,186.8,45.09231915]
[1734863580293,0.6797025,186.81,186.8,27.63175684]
[1734863580478,0.6797025,186.81,186.8,3.05217244]
[1734863581098,0.6797025,186.81,186.78,0.80287767]
[1734863581804,0.6797025,186.81,186.79,20.51344389]
[1734863582009,0.6797025,186.81,186.8,0.80271456]
[1734863582505,0.6797025,186.81,186.71,17.46056231]
[1734863582801,0.6797025,186.81,186.7,8.3237]
[1734863582802,0.6797025,186.81,186.72,18.26360817]
[1734863583006,0.6797025,186.81,186.73,17.46056231]
[1734863583392,0.6797025,186.81,186.72,21.31815671]
[1734863583705,20.6797025,186.81,186.72,21.31815671]
[1734863583934,20.6797025,186.81,186.73,23.776884]
[1734863586109,20.0,186.79,186.72,0.80304586]
[1734863586292,20.0,186.79,186.71,0.80314757]
[1734863586605,20.0,186.79,186.71,18.26370988]
[1734863587914,20.0,186.77,186.71,18.26370988]
[1734863588106,20.0,186.77,186.71,0.80314757]
[1734863588311,20.0,186.77,186.69,17.46056231]
[1734863588497,20.0,186.77,186.68,41.23744631]
[1734863588699,20.0,186.77,186.69,0.8032362]
[1734863589002,20.0,186.77,186.69,18.26379851]
[1734863590185,20.0,186.77,186.7,23.776884]
[1734863590386,20.0,186.77,186.69,0.8032362]
[1734863591818,24.0157,186.77,186.69,0.8032362]
[1734863591981,24.0157,186.77,186.68,0.80328879]
[1734863593618,24.0157,186.77,186.66,0.80330734]
[1734863593619,1.6339,186.76,186.66,0.80330734]
[1734863595015,20.0,186.73,186.64,17.46056231]
[1734863595202,20.0,186.73,186.65,0.8034204]
[1734863596522,20.0,186.73,186.66,23.776884]
[1734863596821,20.0,186.73,186.67,0.80334843]
[1734863597323,1.6339,186.76,186.68,41.23744631]
[1734863597613,1.6339,186.76,186.69,0.80319718]
[1734863598396,20.0,186.75,186.67,17.46056231]
[1734863598698,20.0,186.75,186.65,17.46056231]
[1734863598904,20.0,186.75,186.66,0.80335056]
[1734863599423,20.0,186.75,186.66,18.26391287]
[1734863600220,20.0,186.75,186.66,0.80335056]
[1734863600615,5.6498,186.76,186.66,0.80335056]
[1734863600824,20.0,186.73,186.65,0.80340505]
[1734863600998,20.0,186.73,186.66,41.23744631]
[1734863601201,1.6339,186.76,186.68,41.23744631]
[1734863601512,21.6339,186.76,186.69,18.26373244]
[1734863602017,21.6339,186.76,186.69,0.80317013]
[1734863605226,20.0,186.77,186.71,17.46056231]
[1734863605406,20.0,186.77,186.72,18.26365363]
[1734863605805,7.71,186.8,186.72,0.80309132]
[1734863607028,20.0,186.77,186.68,18.26365621]
[1734863607229,20.0,186.77,186.68,0.8030939]
[1734863607906,20.0,186.77,186.65,17.46056231]
[1734863608108,20.0,186.77,186.66,0.80337615]
[1734863609298,4.0158,186.76,186.66,0.80337615]
[1734863609520,1.5633,186.75,186.62,18.26392487]
[1734863609725,20.0,186.73,186.62,18.26392487]
[1734863610209,20.0,186.73,186.62,0.80336256]
[1734863610406,20.0,186.73,186.62,18.26392487]
[1734863610797,20.0,186.73,186.63,23.776884]
[1734863611115,20.0,186.73,186.64,0.80342818]
[1734863611824,4.0167,186.72,186.64,0.80342818]
[1734863612031,30.4187,186.72,186.62,0.80343268]
[1734863612533,20.0,186.7,186.62,0.80343268]
[1734863613104,20.0,186.69,186.62,0.80343268]
[1734863613529,20.0,186.69,186.62,18.26399499]
[1734863613831,20.0,186.72,186.64,17.46056231]
[1734863614127,20.0,186.72,186.65,0.80339449]
[1734863614437,20.0,186.72,186.64,0.80344446]
[1734863615503,1.5633,186.75,186.67,17.46056231]
[1734863615708,1.5633,186.75,186.69,17.46056231]
[1734863615911,1.5633,186.75,186.7,0.80320472]
[1734863616102,1.5633,186.75,186.69,0.80320594]
[1734863616416,1.5633,186.75,186.68,0.80328349]
[1734863616830,20.0,186.73,186.68,0.80328349]
[1734863620829,8.0169,186.8,186.7,17.46056231]
[1734863621000,20.0,186.77,186.71,0.80311837]
[1734863621204,20.0,186.78,186.72,23.776884]
[1734863621538,1.6149,186.8,186.73,0.8031019]
[1734863622618,1.6149,186.8,186.74,23.776884]
[1734863622839,0.6797025,186.81,186.76,23.776884]
[1734863623131,0.6797025,186.81,186.77,0.80284077]
[1734863624536,0.6797025,186.81,186.78,23.776884]
[1734863624713,0.6797025,186.81,186.79,0.80279848]
[1734863625743,0.6797025,186.81,186.8,23.776884]
[1734863626030,0.6797025,186.81,186.8,41.23744631]
[1734863626226,0.6797025,186.81,186.8,42.04011019]
[1734863633557,0.6797025,186.81,186.8,50.33361019]
[1734863637715,0.6797025,186.81,186.8,18.26322619]
[1734863639022,0.6797025,186.81,186.8,17.46056231]
[1734863639736,0.6797025,186.81,186.8,41.23744631]
[1734863640977,0.6797025,186.81,186.8,17.46056231]
[1734863641875,0.6797025,186.81,186.8,18.26321636]
[1734863642046,0.6797025,186.81,186.8,0.80265405]
[1734863642852,0.6797025,186.81,186.8,18.26321636]
[1734863648161,0.6797025,186.81,186.8,11.6447216]
[1734863651858,0.6797025,186.81,186.78,10.84206755]
[1734863652186,0.6797025,186.81,186.76,11.64494274]
[1734863652384,0.6797025,186.81,186.76,0.80287519]
[1734863652687,0.6797025,186.81,186.74,11.64503153]
[1734863652979,0.6797025,186.81,186.75,10.84206755]
[1734863653479,0.6797025,186.81,186.71,0.80291605]
[1734863653649,0.6797025,186.81,186.73,10.84206755]
[1734863654260,0.6797025,186.81,186.72,10.84206755]
[1734863654877,0.6797025,186.81,186.74,10.84206755]
[1734863655087,0.6797025,186.81,186.76,10.84206755]
[1734863655295,0.6797025,186.81,186.74,13.3875]
[1734863655296,0.6797025,186.81,186.78,10.84206755]
[1734863655598,0.6797025,186.81,186.79,0.80280128]
[1734863657277,0.6797025,186.81,186.78,0.80280906]
[1734863659024,0.6797025,186.81,186.77,10.84206755]
[1734863659869,0.6797025,186.81,186.76,10.84206755]
[1734863660074,0.6797025,186.81,186.78,10.84206755]
[1734863660291,0.6797025,186.81,186.79,0.80281506]
[1734863660602,0.6797025,186.81,186.76,10.84206755]
[1734863660979,0.6797025,186.81,186.77,0.80292404]
[1734863661605,0.6797025,186.81,186.77,11.64499159]
[1734863663000,0.6797025,186.81,186.78,3.03977714]
[1734863663803,0.6797025,186.81,186.75,11.64496398]
[1734863664491,0.6797025,186.81,186.76,3.03967238]
[1734863664900,0.6797025,186.81,186.77,3.03967238]
[1734863665672,0.6797025,186.81,186.75,0.80289643]
[1734863666400,0.6797025,186.81,186.76,3.03957122]
[1734863667202,0.6797025,186.81,186.77,3.03957122]
[1734863667801,0.6797025,186.81,186.78,3.03957122]
[1734863668502,0.6797025,186.81,186.75,11.64496398]
[1734863668667,0.6797025,186.81,186.75,0.80289643]
[1734863668872,0.6797025,186.81,186.74,0.80302372]
[1734863669178,0.6797025,186.81,186.76,3.04370836]
[1734863670008,0.6797025,186.81,186.77,3.04370836]
[1734863670687,0.6797025,186.81,186.71,10.84206755]
[1734863671000,6.2864,186.8,186.69,0.80301243]
[1734863671200,6.2864,186.8,186.69,11.64507998]
[1734863671386,6.2864,186.8,186.72,3.04430386]
[1734863671976,6.2864,186.8,186.69,11.64507998]
[1734863673203,20.0,186.77,186.69,0.80301243]
[1734863673383,20.0,186.77,186.66,11.64532039]
[1734863673581,20.0,186.76,186.66,11.64532039]
[1734863673989,20.0,186.76,186.66,0.80325284]
[1734863675002,26.2864,186.73,186.63,0.8034152]
[1734863675197,26.2864,186.73,186.64,10.84206755]
[1734863675399,26.2864,186.73,186.65,11.64546235]
[1734863680809,26.2864,186.73,186.65,0.8033948]
[1734863681010,26.2864,186.73,186.63,10.84206755]
[1734863681211,20.0,186.72,186.62,0.80343831]
[1734863681546,20.0,186.7,186.59,11.64563785]
[1734863681687,1.458951,186.69,186.59,0.8035703]
[1734863681890,1.458951,186.69,186.57,11.64574239]
[1734863682996,20.0,186.65,186.57,0.80367484]
[1734863683194,6.595,186.66,186.58,0.80379885]
[1734863683493,1.458951,186.69,186.63,10.84206755]
[1734863683696,1.458951,186.69,186.64,11.64554866]
[1734863685623,1.458951,186.69,186.64,0.80348111]
[1734863686809,1.458951,186.69,186.63,0.80348016]
[1734863687201,1.458951,186.69,186.62,0.80352093]
[1734863690623,1.458951,186.69,186.6,11.64563994]
[1734863691109,1.458951,186.69,186.6,0.80357239]
[1734863691999,1.458951,186.69,186.6,11.64563994]
[1734863697337,1.458951,186.69,186.6,0.80357239]
[1734863698427,1.458951,186.69,186.6,11.64563994]
[1734863701813,1.458951,186.69,186.6,0.80357239]
[1734863702010,20.0,186.67,186.58,0.80364786]
[1734863703212,20.0,186.67,186.57,0.80369976]
[1734863705122,20.0,186.67,186.56,0.80377061]
[1734863705432,20.0,186.63,186.53,0.80379252]
[1734863705611,20.0,186.63,186.49,10.84206755]
[1734863705939,1.5362,186.62,186.5,0.80399157]
[1734863707044,1.5362,186.62,186.52,10.84206755]
[1734863707341,1.5362,186.62,186.54,10.84206755]
[1734863707510,1.5362,186.62,186.55,0.80379312]
[1734863707925,1.5362,186.62,186.53,0.80382478]
[1734863708123,1.5362,186.62,186.5,10.84206755]
[1734863708331,1.5362,186.62,186.51,0.80397375]
[1734863709438,1.5362,186.62,186.5,0.8040448]
[1734863709626,21.5362,186.62,186.5,0.8040448]
[1734863710427,21.5362,186.62,186.5,11.64611235]
[1734863710742,1.5362,186.62,186.5,0.8040448]
[1734863710927,20.0,186.58,186.5,0.8040448]
[1734863711243,20.0,186.58,186.49,0.80410332]
[1734863712545,20.0,186.58,186.49,11.64617087]
[1734863713642,6.2898,186.59,186.51,10.84206755]
[1734863713950,6.2898,186.59,186.52,0.80394275]
[1734863714246,6.2898,186.59,186.52,0.80397704]
[1734863714449,20.0,186.6,186.52,11.64604459]
[1734863714619,20.0,186.6,186.52,0.80397704]
[1734863716460,1.5362,186.62,186.52,11.64604459]
[1734863716633,1.5362,186.62,186.55,10.84206755]
[1734863716958,1.5362,186.62,186.57,10.84206755]
[1734863717252,1.5362,186.66,186.58,0.80372561]
[1734863717738,1.5362,186.66,186.58,11.64579316]
[1734863717932,1.5362,186.66,186.59,10.84206755]
[1734863718132,1.5362,186.71,186.62,10.84206755]
[1734863718338,1.5362,186.71,186.63,11.64554953]
[1734863718738,1.5362,186.71,186.61,0.8034854]
[1734863719425,1.5362,186.71,186.59,11.64570119]
[1734863719930,1.5362,186.71,186.6,10.84206755]
[1734863719931,20.0,186.69,186.6,10.84206755]
[1734863720239,20.0,186.69,186.61,0.80356599]
[1734863720953,20.0,186.69,186.61,18.18666195]
[1734863723244,1.6002,186.75,186.61,34.20026599]
[1734863723430,1.6002,186.75,186.67,17.38309596]
[1734863723757,1.6002,186.75,186.68,0.80322391]
[1734863724132,1.6002,186.75,186.65,17.38309596]
[1734863724437,1.6002,186.75,186.66,0.8033371]
[1734863726433,1.6002,186.75,186.67,17.38309596]
[1734863726653,1.6002,186.75,186.68,0.80323692]
[1734863727154,1.6002,186.75,186.68,18.18633288]
[1734863727540,1.6002,186.8,186.69,17.38309596]
[1734863727861,1.6002,186.8,186.7,18.18621883]
[1734863728450,20.0,186.78,186.7,18.18621883]
[1734863729454,20.0,186.78,186.7,0.80312287]
[1734863731663,20.0,186.78,186.7,18.18621883]
[1734863732259,1.6002,186.8,186.72,17.38309596]
[1734863732440,1.6002,186.8,186.73,0.80299821]
[1734863733568,1.6002,186.8,186.73,18.18609417]
[1734863735341,1.6002,186.8,186.73,0.80299821]
[1734863740973,1.6002,186.8,186.74,0.80301155]
[1734863741364,1.6002,186.8,186.72,0.80301242]
[1734863742460,1.6002,186.8,186.71,0.80306633]
[1734863743058,20.0,186.78,186.69,0.80305876]
[1734863743244,20.0,186.77,186.67,0.80321692]
[1734863743451,20.0,186.77,186.65,0.80332823]
[1734863744356,21.642,186.77,186.65,0.80332823]
[1734863744556,20.0,186.76,186.64,0.80341686]
[1734863744755,6.1567,186.74,186.64,0.80341686]
[1734863745064,1.642,186.7,186.6,0.80350158]
[1734863746171,20.0,186.69,186.59,0.80363083]
[1734863747179,20.0,186.69,186.58,0.80366829]
[1734863747754,20.0,186.65,186.56,17.38708401]
[1734863747952,20.0,186.65,186.55,0.80371566]
[1734863748153,1.642,186.64,186.53,17.38708401]
[1734863748373,1.642,186.64,186.54,0.80388085]
[1734863748847,29.832984,186.63,186.5,0.80391449]
[1734863749056,20.0,186.6,186.5,0.80391449]
[1734863749253,20.0,186.6,186.48,18.19111827]
[1734863750554,6.0561,186.63,186.57,17.38708401]
[1734863750779,1.642,186.64,186.58,18.19080942]
[1734863750981,1.642,186.64,186.59,17.38708401]
[1734863751961,1.642,186.64,186.6,0.80361033]
[1734863753390,1.642,186.64,186.58,17.38708401]
[1734863753573,1.642,186.64,186.59,0.80361802]
[1734863753973,6.0561,186.67,186.59,18.19070203]
[1734863754299,6.0561,186.71,186.6,0.12549]
[1734863754479,6.0561,186.71,186.65,17.38708401]
[1734863754677,6.0561,186.71,186.66,0.80333046]
[1734863755375,1.6516,186.73,186.66,0.80333046]
[1734863755578,1.6516,186.73,186.66,18.19041447]
[1734863757294,1.6516,186.73,186.66,0.80333046]
[1734863757587,1.6516,186.77,186.68,17.38708401]
[1734863757796,1.6516,186.77,186.69,18.19025242]
[1734863758597,1.6516,186.77,186.69,0.80316841]
[1734863759594,20.0,186.76,186.69,0.80316841]
[1734863759999,20.0,186.76,186.68,0.8032236]
[1734863762490,20.0,186.76,186.67,14.19591438]
[1734863762695,1.6516,186.77,186.71,17.38708401]
[1734863762971,1.6516,186.77,186.72,0.80307523]
[1734863765010,0.6797025,186.81,186.73,17.38708401]
[1734863765167,0.6797025,186.81,186.77,17.38708401]
[1734863765372,0.6797025,186.81,186.78,0.80281665]
[1734863766605,0.6797025,186.81,186.76,14.18893669]
[1734863768814,0.6797025,186.81,186.76,31.5760207]
[1734863769617,0.6797025,186.81,186.77,17.38708401]
[1734863769825,0.6797025,186.81,186.78,0.80278802]
[1734863771494,0.6797025,186.81,186.78,18.18987203]
[1734863771697,0.6797025,186.81,186.78,0.80278802]
[1734863773831,0.6797025,186.81,186.8,17.38708401]
[1734863774195,0.6797025,186.81,186.79,17.38708401]
[1734863774499,0.6797025,186.81,186.8,0.80272957]
[1734863775196,0.6797025,186.81,186.78,13.3841]
[1734863775392,0.6797025,186.81,186.78,14.18691735]
[1734863775600,0.6797025,186.81,186.78,31.57400136]
[1734863776227,0.6797025,186.81,186.78,14.18691735]
[1734863777628,0.6797025,186.81,186.78,0.80281735]
[1734863777806,0.6797025,186.81,186.73,18.1900021]
[1734863779157,7.9651,186.8,186.71,0.80305848]
[1734863779431,7.9651,186.8,186.71,18.19014249]
[1734863779727,7.9651,186.8,186.72,17.38708401]
[1734863779910,7.9651,186.8,186.73,0.80304428]
[1734863780108,7.9651,186.8,186.73,18.19012829]
[1734863781018,7.9651,186.8,186.74,17.38708401]
[1734863781333,7.9651,186.8,186.75,0.80295901]
[1734863781631,1.6274,186.8,186.75,18.19004302]
[1734863784646,1.6274,186.8,186.72,31.57855271]
[1734863784931,1.6274,186.8,186.72,14.1914687]
[1734863785132,1.6274,186.8,186.72,31.57855271]
[1734863785319,1.6274,186.8,186.72,18.19005271]
[1734863785531,1.6274,186.8,186.72,0.8029687]
[1734863786144,1.6274,186.8,186.7,18.19023404]
[1734863786321,20.0,186.76,186.66,17.38708401]
[1734863786521,20.0,186.76,186.65,0.80323979]
[1734863786914,20.0,186.76,186.65,18.1903238]
[1734863787144,20.0,186.76,186.66,17.38708401]
[1734863787323,20.0,186.76,186.68,17.38708401]
[1734863788338,20.0,186.76,186.69,18.19033682]
[1734863788506,20.0,186.76,186.7,17.38708401]
[1734863789024,20.0,186.76,186.69,18.19033682]
[1734863790450,20.0,186.76,186.67,0.8032252]
[1734863790856,20.0,186.76,186.67,18.19030921]
[1734863791160,20.0,186.76,186.69,17.38708401]
[1734863791553,20.0,186.76,186.7,0.80319398]
[1734863791757,6.3377,186.79,186.7,0.80319398]
[1734863792954,6.3377,186.79,186.7,18.19027799]
[1734863793856,6.3377,186.79,186.7,0.80319398]
[1734863796765,6.3377,186.79,186.68,17.38708401]
[1734863797944,6.3377,186.79,186.69,0.80324956]
[1734863799864,20.0,186.76,186.69,0.80324956]
[1734863800051,20.0,186.76,186.65,17.38708401]
[1734863800252,20.0,186.76,186.65,18.19046308]
[1734863800550,1.6306,186.75,186.65,0.80337907]
[1734863800861,1.6306,186.75,186.66,17.38708401]
[1734863801049,1.6306,186.75,186.68,17.38708401]
[1734863801246,1.6306,186.75,186.69,18.19031715]
[1734863802450,1.6306,186.75,186.7,17.38708401]
[1734863802635,1.6306,186.75,186.7,18.19025057]
[1734863803567,1.6306,186.75,186.69,17.38708401]
[1734863803867,1.6306,186.75,186.69,18.19030389]
[1734863804537,1.6306,186.75,186.67,18.19034375]
[1734863807980,1.6306,186.75,186.66,17.38708401]
[1734863808153,1.6306,186.75,186.65,17.38708401]
[1734863808354,1.6306,186.75,186.66,0.80338253]
[1734863808773,20.0,186.74,186.66,0.80338253]
[1734863809083,20.0,186.7,186.63,0.80348111]
[1734863809245,20.0,186.7,186.65,0.80348111]
[1734863810282,6.6422,186.73,186.66,17.38708401]
[1734863810481,6.6422,186.73,186.67,0.80331715]
[1734863812957,6.6422,186.73,186.64,18.1904383]
[1734863813866,6.6422,186.73,186.64,0.80335429]
[1734863816374,6.6422,186.73,186.64,11.66416647]
[1734863817090,6.6422,186.73,186.64,0.80335429]
[1734863817271,6.6422,186.73,186.62,23.776884]
[1734863817477,6.6422,186.73,186.63,0.80342358]
[1734863818887,20.0,186.69,186.56,135.9]
[1734863819057,29.969684,186.67,186.53,135.9]
[1734863819262,29.969684,186.67,186.54,0.80384717]
[1734863819263,20.0,186.64,186.54,0.80384717]
[1734863820400,20.0,186.64,186.55,0.80373285]
[1734863821189,20.0,186.64,186.56,0.80370367]
[1734863821491,6.1928,186.67,186.57,23.776884]
[1734863821785,6.1928,186.67,186.58,0.80363312]
[1734863823193,6.1928,186.67,186.56,135.9]
[1734863823194,20.0,186.64,186.56,135.9]
[1734863823566,20.0,186.64,186.57,0.80381307]
[1734863824467,20.0,186.64,186.53,0.80383073]
[1734863824663,20.0,186.64,186.54,23.776884]
[1734863824972,20.0,186.64,186.55,0.8037772]
[1734863831395,20.0,186.64,186.56,23.776884]
[1734863831596,6.3210908,186.67,186.57,0.80367037]
[1734863832190,6.3210908,186.67,186.55,135.9]
[1734863832408,6.3210908,186.67,186.56,0.80383123]
[1734863833394,20.0,186.64,186.56,0.80383123]
[1734863837401,20.0,186.64,186.54,0.80377698]
[1734863837784,20.0,186.64,186.55,23.776884]
[1734863838082,20.0,186.64,186.56,0.80372013]
[1734863843506,10.3389908,186.67,186.56,0.80372013]
[1734863843803,0.1282908,186.67,186.58,0.12549]
[1734863843991,0.1282908,186.67,186.59,23.776884]
[1734863844203,0.1282908,186.67,186.61,23.776884]
[1734863844380,0.1282908,186.67,186.62,0.8035033]
[1734863848509,0.1282908,186.67,186.6,135.9]
[1734863849004,0.1282908,186.67,186.61,0.80364241]
[1734863849406,0.1282908,186.67,186.58,23.776884]
[1734863849712,0.1282908,186.67,186.59,0.80362931]